bitfinex/quotes_SOLUSD_20240714
["timestamp","ask_amount","ask_price","bid_price","bid_amount"]
[1720925835682,13.55636784,143.98,143.94,1.38909222]
[1720925835899,13.55636784,143.98,143.93,17.9013]
[1720925836111,11.82,143.97,143.93,6.0813]
[1720925836281,11.82,143.97,143.93,1.38924452]
[1720925836482,11.82,143.96,143.93,1.38936152]
[1720925836812,1.73661876,143.99,143.93,1.38936152]
[1720925836998,11.82,143.97,143.93,1.38936152]
[1720925837304,11.82,143.99,143.95,15.2027]
[1720925837505,2.60542736,144.01,143.96,1.38905385]
[1720925837888,11.82,143.99,143.96,1.38905385]
[1720925842108,2.60542736,144.01,143.96,1.38905385]
[1720925842303,11.82,143.99,143.96,1.38905385]
[1720925844610,2.60542736,144.01,143.96,1.38905385]
[1720925844828,11.82,143.98,143.96,1.38905385]
[1720925845214,11.82,143.97,143.95,15.2027]
[1720925845612,2.60563294,144.01,143.92,1.38921843]
[1720925845824,11.82,143.93,143.91,15.1559]
[1720925849046,11.82,143.94,143.91,15.1559]
[1720925849337,11.82,143.95,143.92,1.38956012]
[1720925853137,11.82,143.94,143.92,1.38956012]
[1720925854329,11.82,143.95,143.92,1.38956012]
[1720925858132,1.73694487,143.99,143.92,1.38956012]
[1720925858347,21.73694487,143.99,143.92,1.38956012]
[1720925858561,11.82,143.96,143.92,1.38956012]
[1720925858724,11.82,143.95,143.92,1.38956012]
[1720925859438,11.82,143.96,143.92,1.38956012]
[1720925860035,1.73694487,143.99,143.92,58.20956012]
[1720925860342,1.73651312,144.0,143.93,11.82]
[1720925860642,11.82,143.98,143.94,1.38921022]
[1720925861436,11.82,143.97,143.94,1.38921022]
[1720925861633,1.73651312,144.0,143.93,1.38921068]
[1720925861927,11.82,143.97,143.93,1.38921068]
[1720925869050,1.73651312,144.0,143.93,1.38921068]
[1720925869242,11.82,143.97,143.93,1.38921068]
[1720925880948,13.55668325,143.96,143.91,26.9759]
[1720925881362,11.82,143.96,143.91,26.9759]
[1720925881552,11.82,143.96,143.92,1.38933396]
[1720925886845,1.73666061,143.99,143.92,13.20933396]
[1720925887036,11.82,143.97,143.92,13.20933396]
[1720925888538,11.82,143.97,143.92,1.38933396]
[1720925888960,11.82,143.96,143.92,1.38933396]
[1720925893040,1.73652483,144.0,143.92,1.38933396]
[1720925893242,11.82,143.96,143.92,1.38933396]
[1720925896856,11.82,144.0,143.92,1.38933396]
[1720925897062,11.82,143.95,143.92,1.38933396]
[1720925898563,11.82,143.98,143.93,11.82]
[1720925898748,1.73678404,143.97,143.94,1.38942723]
[1720925898948,1.73666035,143.98,143.94,11.82]
[1720925899964,1.73666035,143.98,143.93,1.38932977]
[1720925899965,1.73666035,143.98,143.93,13.20932977]
[1720925900272,11.82,143.96,143.91,15.1559]
[1720925900457,13.55690613,143.95,143.91,15.1559]
[1720925900656,11.82,143.95,143.91,15.1559]
[1720925901576,11.82,143.97,143.92,11.82]
[1720925901758,1.73690609,143.96,143.92,11.82]
[1720925902663,1.73690609,143.96,143.91,15.1559]
[1720925902865,1.73690609,143.96,143.92,11.82]
[1720925903066,11.82,143.97,143.92,11.82]
[1720925903244,1.7369059,143.96,143.92,11.82]
[1720925903940,1.73690528,144.0,143.93,13.20875188]
[1720925904142,11.82,143.99,143.94,11.82]
[1720925904351,1.73672056,143.98,143.94,11.82]
[1720925904552,13.55672056,144.0,143.95,11.82]
[1720925905576,1.73672056,144.0,143.96,11.82]
[1720925906061,2.60556745,144.01,143.97,13.20916604]
[1720925906260,0.8691099,144.01,143.97,1.38916604]
[1720925906569,0.8691099,144.01,143.98,11.82]
[1720925910564,0.8691099,144.01,144.0,11.82]
[1720925914970,0.8691099,144.01,144.0,13.20868589]
[1720925916658,0.8691099,144.01,143.99,16.6187]
[1720925916853,0.8691099,144.01,143.95,16.6187]
[1720925917165,0.8691099,144.01,143.98,11.82]
[1720925917363,2.6054143,144.01,143.98,11.82]
[1720925918263,0.8691099,144.01,143.98,11.82]
[1720925918479,2.60540696,144.01,143.98,11.72]
[1720925919481,0.8691099,144.01,143.98,11.72]
[1720925919665,2.60541323,144.01,143.96,1.38903628]
[1720925919858,2.60541323,144.01,143.98,11.82]
[1720925920266,2.60541323,144.01,143.97,11.82]
[1720925920878,2.60541323,144.01,143.95,16.6187]
[1720925921181,2.60541323,144.01,143.97,11.82]
[1720925921677,2.60541323,144.01,143.98,11.82]
[1720925921859,0.8691099,144.01,143.98,11.82]
[1720925922054,0.8691099,144.01,143.99,11.82]
[1720925922260,2.6053376,144.01,143.99,11.82]
[1720925922456,0.8691099,144.01,143.99,11.82]
[1720925931187,0.8691099,144.01,143.96,1.38908208]
[1720925931188,0.8691099,144.01,144.0,11.82]
[1720925933579,0.8691099,144.01,144.0,13.20864797]
[1720925934362,0.8691099,144.01,144.0,25.02864797]
[1720925935889,0.8691099,144.01,144.0,13.20864797]
[1720925937472,0.8691099,144.01,144.0,1.38864797]
[1720925937781,0.8691099,144.01,143.99,16.0392]
[1720925937782,0.8691099,144.01,143.99,17.42788085]
[1720925937966,0.8691099,144.01,144.0,11.82]
[1720925939085,0.8691099,144.01,143.99,16.0392]
[1720925939290,0.8691099,144.01,144.0,11.82]
[1720925942085,0.8691099,144.01,144.0,25.02879087]
[1720925942676,0.8691099,144.01,144.0,13.20856709]
[1720925943364,0.8691099,144.01,144.0,13.20864899]
[1720925943682,0.8691099,144.01,144.0,11.82]
[1720925945273,0.8691099,144.01,144.0,13.20865974]
[1720925946496,0.8691099,144.01,144.0,25.02865974]
[1720925947188,0.8691099,144.01,144.0,13.20865974]
[1720925947382,0.8691099,144.01,144.0,11.82]
[1720925947696,0.8691099,144.01,144.0,13.20865936]
[1720925948078,0.8691099,144.01,144.0,11.82]
[1720925948279,0.8691099,144.01,143.99,16.0392]
[1720925948479,0.8691099,144.01,144.0,11.82]
[1720925948987,0.8691099,144.01,144.0,13.20866011]
[1720925949779,0.8691099,144.01,144.0,11.82]
[1720925950286,0.8691099,144.01,143.94,21.47795899]
[1720925950593,0.8691099,144.01,143.95,15.871]
[1720925950896,0.8691099,144.01,143.96,1.38898873]
[1720925951091,2.60530866,144.01,143.95,17.25995901]
[1720925951301,2.60530866,144.01,143.98,11.82]
[1720925952394,2.60530866,144.01,143.99,11.82]
[1720925953299,2.60530866,144.01,143.96,1.38910399]
[1720925953505,2.60530866,144.01,143.99,11.82]
[1720925954899,2.60530866,144.01,144.0,11.82]
[1720925956401,0.8691099,144.01,144.0,11.82]
[1720925961120,0.8691099,144.01,143.95,15.871]
[1720925961293,0.8691099,144.01,144.0,11.82]
[1720925961494,0.8691099,144.01,144.0,58.9715]
[1720925961808,0.8691099,144.01,144.0,60.3600106]
[1720925963010,0.8691099,144.01,144.0,105.3600106]
[1720925965502,21.7356009,144.09,144.0,105.3600106]
[1720925965694,1.7356009,144.09,144.08,11.82]
[1720925965900,1.73531422,144.11,144.08,11.82]
[1720925966101,1.73532377,144.1,144.08,11.82]
[1720925968426,1.73532377,144.1,144.09,11.82]
[1720925968933,1.73532377,144.1,144.08,11.82]
[1720925970819,1.73532377,144.1,144.09,11.82]
[1720925976619,1.73532377,144.1,144.08,11.82]
[1720925978712,6.2812,144.12,144.08,11.82]
[1720925978713,1.73514311,144.11,144.08,11.82]
[1720925978909,1.73514304,144.1,144.08,11.82]
[1720925979611,1.73514304,144.1,144.09,11.82]
[1720925979939,1.73509162,144.11,144.08,11.82]
[1720925980140,1.73512197,144.1,144.05,15.3315]
[1720925980324,1.73512197,144.1,144.07,11.82]
[1720925983029,1.73512197,144.1,144.08,11.82]
[1720925984035,1.73512197,144.1,144.09,11.82]
[1720925984423,1.73512197,144.1,144.08,11.82]
[1720925985017,1.73512506,144.11,144.08,11.82]
[1720925985218,1.73512506,144.1,144.08,11.82]
[1720925985432,1.73512544,144.11,144.08,11.82]
[1720925985612,1.73512544,144.1,144.05,15.3315]
[1720925985812,1.73512544,144.1,144.07,11.82]
[1720925986512,1.73525647,144.11,144.07,11.82]
[1720925986712,1.73525424,144.1,144.07,11.82]
[1720925987631,1.73524874,144.11,144.07,11.82]
[1720925987823,1.73527085,144.1,144.07,11.82]
[1720925988733,1.73526918,144.11,144.05,15.3315]
[1720925988917,1.73535118,144.1,144.07,11.82]
[1720925989835,1.73535118,144.1,144.08,11.82]
[1720925990039,1.73531644,144.11,144.08,11.82]
[1720925990213,1.73531644,144.11,144.05,15.3315]
[1720925990214,1.73518172,144.1,144.05,15.3315]
[1720925990414,1.73518172,144.1,144.07,11.82]
[1720925991334,1.73526613,144.11,144.07,11.82]
[1720925991539,1.73526634,144.1,144.07,11.82]
[1720925992515,1.73526284,144.09,144.07,11.82]
[1720925992723,1.73526303,144.11,144.08,11.82]
[1720925992943,1.73520401,144.1,144.08,11.82]
[1720925993951,1.73520916,144.12,144.08,11.82]
[1720925994137,1.73520916,144.12,144.06,1.38816732]
[1720925994138,21.73520916,144.12,144.09,11.82]
[1720925994743,1.73520916,144.12,144.09,11.82]
[1720926000445,1.73520916,144.12,144.08,11.82]
[1720926001848,1.73520916,144.12,144.1,11.82]
[1720926002445,1.73493984,144.14,144.1,11.82]
[1720926004153,1.73493984,144.14,144.06,1.38816732]
[1720926004348,1.73493984,144.14,144.11,11.82]
[1720926004529,1.73493984,144.14,144.06,66.38816732]
[1720926004530,1.73493984,144.14,144.05,15.3315]
[1720926004731,1.73493984,144.14,144.11,11.82]
[1720926006960,1.73493984,144.14,144.12,11.82]
[1720926007447,1.73493984,144.14,144.09,1.38783146]
[1720926007830,1.73493984,144.14,144.12,11.82]
[1720926010557,2.60384085,144.15,144.13,11.82]
[1720926010765,2.60384085,144.15,144.14,11.82]
[1720926011238,2.60384085,144.15,144.09,16.56553146]
[1720926011436,2.60384085,144.15,144.14,11.82]
[1720926011641,0.8691099,144.15,144.13,11.82]
[1720926013951,0.8691099,144.15,144.14,11.82]
[1720926028248,0.8691099,144.15,144.14,28.3191]
[1720926035481,0.8691099,144.15,144.1,16.4991]
[1720926035662,0.8691099,144.15,144.13,11.82]
[1720926036295,2.60357915,144.15,144.13,11.82]
[1720926036791,0.8691099,144.15,144.14,11.82]
[1720926036992,0.8691099,144.15,144.13,11.82]
[1720926039664,0.8691099,144.15,144.14,11.82]
[1720926040366,0.8691099,144.15,144.13,11.82]
[1720926040681,0.8691099,144.15,144.14,11.82]
[1720926041362,0.8691099,144.15,144.11,1.38757367]
[1720926041563,0.8691099,144.15,144.13,11.82]
[1720926042185,0.8691099,144.15,144.11,1.38757367]
[1720926042186,0.8691099,144.15,144.14,11.82]
[1720926042491,0.8691099,144.15,144.13,11.82]
[1720926043196,0.8691099,144.15,144.14,11.82]
[1720926048194,0.8691099,144.15,144.1,16.4991]
[1720926048574,0.8691099,144.15,144.12,11.82]
[1720926048777,0.8691099,144.15,144.06,21.8611]
[1720926048778,8.6725006,144.14,144.06,21.8611]
[1720926048983,20.4925006,144.14,144.09,11.82]
[1720926049588,6.9383,144.13,144.09,11.82]
[1720926049896,8.67385378,144.12,144.08,11.82]
[1720926050099,8.67385378,144.12,144.03,15.62]
[1720926050276,8.67385378,144.12,144.08,11.82]
[1720926050475,8.67385378,144.12,144.03,15.62]
[1720926050681,20.49375378,144.12,144.03,15.62]
[1720926050896,20.49375378,144.12,144.07,11.82]
[1720926052499,13.55505378,144.12,144.07,11.82]
[1720926052703,1.73505378,144.12,144.09,11.82]
[1720926052999,1.73495607,144.13,144.1,11.82]
[1720926053899,19.6267099,144.15,144.1,11.82]
[1720926053900,6.9379,144.14,144.1,11.82]
[1720926054098,8.67274938,144.14,144.09,11.82]
[1720926054304,20.49274938,144.14,144.09,11.82]
[1720926054677,6.9382,144.13,144.09,11.82]
[1720926054880,6.9382,144.13,144.04,1.3879284]
[1720926055112,6.9382,144.13,144.09,11.82]
[1720926055398,6.9378,144.14,144.09,11.82]
[1720926055599,1.73486769,144.13,144.05,1.38799389]
[1720926055799,1.73486769,144.13,144.1,11.82]
[1720926055987,1.73469876,144.14,144.12,11.82]
[1720926057607,2.603744,144.15,144.13,11.82]
[1720926057906,0.8691099,144.15,144.14,11.82]
[1720926059309,0.8691099,144.15,144.1,15.62]
[1720926059512,0.8691099,144.15,144.14,11.82]
[1720926060013,0.8691099,144.15,144.13,11.82]
[1720926060313,2.60348962,144.15,144.13,11.82]
[1720926061082,8.672159,144.14,144.1,15.62]
[1720926061292,20.492159,144.14,144.09,11.82]
[1720926061791,8.672159,144.14,144.1,11.82]
[1720926062790,6.9383,144.13,144.05,1.38781861]
[1720926062990,18.7583,144.13,144.08,11.82]
[1720926063213,18.7583,144.13,144.05,1.38798344]
[1720926063512,18.7587,144.12,144.05,1.38798344]
[1720926063813,1.73507195,144.11,144.07,11.82]
[1720926064310,1.73507195,144.11,144.03,15.4768]
[1720926064311,11.82,144.1,144.05,11.82]
[1720926064497,1.73531331,144.09,144.05,11.82]
[1720926065313,1.73531331,144.09,144.03,15.4768]
[1720926065518,1.73531331,144.09,144.05,11.82]
[1720926066017,1.73531331,144.09,144.03,15.4768]
[1720926066220,1.73531331,144.09,144.05,11.82]
[1720926066717,1.73531331,144.09,144.03,15.4768]
[1720926068016,1.73531331,144.09,144.04,1.38827773]
[1720926068824,1.73529766,144.1,144.04,1.38827773]
[1720926071433,1.73529766,144.1,144.03,15.4768]
[1720926071434,8.67499766,144.1,144.03,15.4768]
[1720926071631,1.73534646,144.09,144.03,15.4768]
[1720926073020,1.73534646,144.09,144.04,1.38827672]
[1720926073216,1.73534265,144.14,144.06,23.61]
[1720926073417,1.73534265,144.14,144.07,46.38776199]
[1720926073623,1.73534265,144.14,144.08,1.38771477]
[1720926075216,13.9481099,144.15,144.08,1.38771477]
[1720926075531,1.53890017,144.14,144.08,1.38771477]
[1720926076915,13.9481099,144.15,144.08,1.38771477]
[1720926077119,7.0109099,144.15,144.08,1.38771477]
[1720926077327,0.8691099,144.15,144.08,1.38771477]
[1720926077522,0.8691099,144.15,144.09,39.0868]
[1720926077713,0.8691099,144.15,144.1,46.38748266]
[1720926077916,0.8691099,144.15,144.11,1.38748285]
[1720926079114,0.8691099,144.15,144.12,23.61]
[1720926079321,0.8691099,144.15,144.13,46.38717792]
[1720926082037,0.8691099,144.15,144.13,1.38717792]
[1720926082224,0.8691099,144.15,144.1,21.38731017]
[1720926082542,0.8691099,144.15,144.11,46.38731083]
[1720926082717,0.8691099,144.15,144.12,20.0]
[1720926082914,0.8691099,144.15,144.13,1.38731077]
[1720926083333,0.8691099,144.15,144.13,46.38731077]
[1720926088639,0.8691099,144.15,144.14,11.79]
[1720926089144,0.8691099,144.15,144.14,76.79]
[1720926091241,0.8691099,144.15,144.14,88.58]
[1720926091441,6.1418,144.23,144.15,15.2355]
[1720926091630,6.1418,144.23,144.2,11.79]
[1720926092021,6.1418,144.23,144.21,11.79]
[1720926096749,1.53890017,144.25,144.21,11.79]
[1720926096956,16.74000017,144.26,144.23,11.79]
[1720926097132,1.53890017,144.26,144.23,11.79]
[1720926097534,1.53890017,144.26,144.16,92.16]
[1720926097737,11.79,144.25,144.17,21.38672935]
[1720926097947,1.53890017,144.24,144.2,11.79]
[1720926100134,1.53890017,144.23,144.18,1.38678214]
[1720926100457,13.32890017,144.23,144.19,11.79]
[1720926100656,13.32890017,144.23,144.18,11.79]
[1720926102834,13.32890017,144.23,144.19,11.79]
[1720926104136,1.53890017,144.23,144.19,11.79]
[1720926105555,15.2011,144.25,144.19,11.79]
[1720926105852,1.53890017,144.26,144.23,11.79]
[1720926106057,21.53890017,144.26,144.16,92.16]
[1720926106266,21.53890017,144.26,144.22,11.79]
[1720926106462,21.53890017,144.26,144.16,92.16]
[1720926106463,33.32890017,144.26,144.16,45.0]
[1720926106638,33.32890017,144.26,144.21,11.79]
[1720926106844,33.32890017,144.26,144.17,1.38671891]
[1720926107043,33.32890017,144.26,144.21,11.79]
[1720926108357,21.53890017,144.26,144.22,11.79]
[1720926109349,1.53890017,144.26,144.22,11.79]
[1720926109557,1.53890017,144.26,144.23,11.79]
[1720926110457,1.53890017,144.26,144.24,11.79]
[1720926110761,1.53890017,144.27,144.24,11.79]
[1720926110940,1.53890017,144.27,144.25,11.79]
[1720926111864,1.53890017,144.28,144.25,11.79]
[1720926112839,1.53890017,144.28,144.22,11.79]
[1720926113048,11.79,144.27,144.22,11.79]
[1720926113248,13.32890017,144.26,144.21,11.79]
[1720926113761,1.53890017,144.25,144.21,11.79]
[1720926113968,11.79,144.27,144.23,11.79]
[1720926114151,1.53890017,144.26,144.23,11.79]
[1720926114347,7.4645099,144.3,144.24,1.38654506]
[1720926114554,7.4645099,144.3,144.24,11.79]
[1720926114753,0.8691099,144.3,144.29,11.79]
[1720926114953,47.16,144.4,144.29,11.79]
[1720926114954,6.5954,144.39,144.3,16.2668]
[1720926115172,6.5954,144.39,144.35,11.79]
[1720926115354,6.5954,144.39,144.36,11.79]
[1720926115549,6.5954,144.39,144.37,11.79]
[1720926115769,30.0,144.38,144.37,11.79]
[1720926116360,1.53890017,144.41,144.37,11.79]
[1720926118672,1.53890017,144.41,144.33,1.38525572]
[1720926118850,1.53890017,144.41,144.33,66.38525572]
[1720926119485,1.53890017,144.4,144.33,66.38525572]
[1720926119771,6.5954,144.43,144.33,66.38525572]
[1720926119772,1.53890017,144.42,144.33,66.38525572]
[1720926122270,1.53890017,144.42,144.33,65.0]
[1720926122672,1.53890017,144.42,144.34,1.38521973]
[1720926124155,1.53890017,144.42,144.34,46.38521973]
[1720926128270,1.53890017,144.42,144.34,45.0]
[1720926128778,1.53890017,144.42,144.35,1.38518443]
[1720926128971,1.53890017,144.42,144.34,45.0]
[1720926130177,1.53890017,144.42,144.35,1.3852029]
[1720926130883,1.53890017,144.42,144.34,45.0]
[1720926131284,2.40801007,144.45,144.36,16.1817]
[1720926131591,1.53890017,144.44,144.37,1.38488303]
[1720926131792,1.53890017,144.44,144.36,17.56673774]
[1720926132391,1.53890017,144.44,144.36,16.1817]
[1720926132894,1.53890017,144.44,144.33,1.38506819]
[1720926133072,6.6334,144.43,144.33,1.38506819]
[1720926133383,46.53890017,144.42,144.33,1.38506819]
[1720926134173,1.53890017,144.42,144.33,1.38506819]
[1720926134379,1.53890017,144.42,144.33,69.89506819]
[1720926134777,1.53890017,144.42,144.34,20.0]
[1720926134977,30.0,144.37,144.35,46.3851131]
[1720926135195,30.0,144.37,144.35,1.3851131]
[1720926136614,30.0,144.37,144.33,68.51]
[1720926140382,30.0,144.37,144.34,1.38529639]
[1720926140571,30.0,144.37,144.36,11.76]
[1720926148803,1.53890017,144.41,144.36,11.76]
[1720926148979,1.53890017,144.41,144.37,11.76]
[1720926149179,30.0,144.38,144.37,11.76]
[1720926149581,1.53890017,144.41,144.37,11.76]
[1720926149808,6.6334,144.43,144.32,34.131]
[1720926149809,1.53890017,144.42,144.4,11.76]
[1720926150190,30.0,144.41,144.4,11.76]
[1720926152400,1.53890017,144.44,144.4,11.76]
[1720926152706,1.53890017,144.44,144.41,11.76]
[1720926153000,30.0,144.42,144.41,11.76]
[1720926156101,30.0,144.42,144.4,11.76]
[1720926156618,1.53890017,144.41,144.32,22.8253]
[1720926156820,31.53890017,144.42,144.39,11.76]
[1720926157804,30.0,144.42,144.4,11.76]
[1720926158012,30.0,144.41,144.4,11.76]
[1720926161892,30.0,144.41,144.39,11.76]
[1720926162290,1.53890017,144.4,144.33,1.38497353]
[1720926162510,1.53890017,144.4,144.37,11.76]
[1720926162708,1.53890017,144.4,144.38,11.76]
[1720926163097,1.53890017,144.4,144.32,72.6405126]
[1720926163408,1.53890017,144.4,144.38,11.76]
[1720926163612,1.53890017,144.42,144.38,11.76]
[1720926165408,1.53890017,144.42,144.33,1.38517546]
[1720926165608,1.53890017,144.42,144.38,11.76]
[1720926165817,1.53890017,144.42,144.39,11.76]
[1720926166015,1.53890017,144.43,144.39,11.76]
[1720926166195,1.53890017,144.42,144.39,11.76]
[1720926166596,1.53890017,144.42,144.33,45.0]
[1720926166809,1.53890017,144.42,144.38,11.76]
[1720926169313,2.40801007,144.45,144.39,11.76]
[1720926169526,11.76,144.44,144.39,11.76]
[1720926169722,13.29890017,144.43,144.39,11.76]
[1720926169899,1.53890017,144.42,144.39,11.76]
[1720926170099,1.53890017,144.42,144.38,11.76]
[1720926170318,1.53890017,144.42,144.34,1.38517585]
[1720926170319,1.53890017,144.42,144.39,11.76]
[1720926173922,1.53890017,144.42,144.33,45.0]
[1720926174152,1.53890017,144.42,144.38,11.76]
[1720926175003,1.53890017,144.42,144.39,11.76]
[1720926176223,1.53890017,144.42,144.34,1.3851067]
[1720926176424,1.53890017,144.42,144.38,11.76]
[1720926178115,2.40801007,144.45,144.38,15.1298]
[1720926178312,2.40801007,144.45,144.4,18.1627]
[1720926178518,0.8691099,144.45,144.43,11.76]
[1720926180243,0.8691099,144.45,144.38,15.1298]
[1720926180554,0.8691099,144.45,144.43,11.76]
[1720926181846,0.8691099,144.45,144.44,11.76]
[1720926182720,0.8691099,144.45,144.4,1.38467172]
[1720926182927,0.8691099,144.45,144.43,11.76]
[1720926183537,0.8691099,144.45,144.44,11.76]
[1720926184116,0.8691099,144.45,144.4,1.38467172]
[1720926184317,0.8691099,144.45,144.44,11.76]
[1720926185642,0.8691099,144.45,144.43,11.76]
[1720926187820,0.8691099,144.45,144.44,11.76]
[1720926193733,0.8691099,144.45,144.43,11.76]
[1720926193947,0.8691099,144.45,144.42,11.76]
[1720926194330,0.8691099,144.45,144.43,11.76]
[1720926194535,2.40801007,144.45,144.38,15.1298]
[1720926194855,14.16801007,144.45,144.4,11.76]
[1720926195039,2.40801007,144.45,144.41,11.76]
[1720926195244,2.40801007,144.45,144.42,11.76]
[1720926195445,2.40801007,144.45,144.41,11.76]
[1720926196154,2.40801007,144.45,144.42,11.76]
[1720926199855,0.8691099,144.45,144.42,11.76]
[1720926200044,2.40801007,144.45,144.42,11.76]
[1720926200959,0.8691099,144.45,144.42,11.76]
[1720926201137,2.40801007,144.45,144.42,11.76]
[1720926202134,0.8691099,144.45,144.42,11.76]
[1720926202332,2.40801007,144.45,144.42,11.76]
[1720926202755,2.40801007,144.45,144.41,11.76]
[1720926207541,14.16801007,144.45,144.38,15.1298]
[1720926207739,14.16801007,144.45,144.41,11.76]
[1720926207948,14.16801007,144.45,144.4,11.76]
[1720926208155,14.16801007,144.45,144.38,15.1298]
[1720926208465,14.16801007,144.45,144.4,11.76]
[1720926212547,2.40801007,144.45,144.4,11.76]
[1720926212753,1.53890017,144.44,144.41,11.76]
[1720926214754,2.40801007,144.45,144.41,11.76]
[1720926216261,0.8691099,144.45,144.41,11.76]
[1720926216466,2.40801007,144.45,144.41,11.76]
[1720926217360,0.8691099,144.45,144.42,1.38473599]
[1720926217573,2.40801007,144.45,144.42,13.14473599]
[1720926218270,2.40801007,144.45,144.42,11.76]
[1720926218876,2.40801007,144.45,144.41,11.76]
[1720926220065,2.40801007,144.45,144.42,1.38468175]
[1720926220261,2.40801007,144.45,144.41,11.76]
[1720926220870,2.40801007,144.45,144.38,15.1298]
[1720926221081,2.40801007,144.45,144.41,11.76]
[1720926222071,14.16801007,144.45,144.4,11.76]
[1720926223572,2.40801007,144.45,144.41,1.38473938]
[1720926223772,0.8691099,144.45,144.41,13.14473938]
[1720926223971,2.40801007,144.45,144.41,13.14473938]
[1720926225365,2.40801007,144.45,144.41,11.76]
[1720926225565,14.16801007,144.45,144.4,11.76]
[1720926226076,11.76,144.44,144.4,11.76]
[1720926226281,1.53890017,144.43,144.4,11.76]
[1720926229065,0.8691099,144.45,144.41,1.38494134]
[1720926229266,2.40801007,144.45,144.41,13.14494134]
[1720926229467,14.16801007,144.45,144.41,1.38494134]
[1720926229665,14.16801007,144.45,144.4,11.76]
[1720926229890,2.40801007,144.45,144.41,11.76]
[1720926231577,11.76,144.44,144.38,15.1298]
[1720926231889,1.53890017,144.43,144.39,13.14497908]
[1720926232094,1.53890017,144.42,144.35,7.53486252]
[1720926232290,1.53890017,144.42,144.36,11.76]
[1720926232291,11.76,144.41,144.36,11.76]
[1720926232887,30.0,144.4,144.34,22.4923]
[1720926233196,30.0,144.4,144.37,11.76]
[1720926233763,30.0,144.4,144.38,1.38509374]
[1720926234284,30.0,144.4,144.38,13.14509374]
[1720926236872,11.76,144.43,144.38,13.14509374]
[1720926237483,1.53890017,144.42,144.38,13.14509374]
[1720926237684,1.53890017,144.42,144.35,1.3850889]
[1720926237891,13.29890017,144.42,144.37,11.76]
[1720926239496,1.53890017,144.42,144.38,11.76]
[1720926239697,30.0,144.39,144.38,11.76]
[1720926243187,30.0,144.39,144.37,11.76]
[1720926243399,30.0,144.39,144.36,1.38513905]
[1720926243603,30.0,144.39,144.37,11.76]
[1720926244398,30.0,144.39,144.36,1.38513905]
[1720926244598,30.0,144.39,144.37,11.76]
[1720926245801,11.76,144.42,144.38,11.76]
[1720926245980,1.53890017,144.41,144.37,11.76]
[1720926247301,1.53890017,144.41,144.38,11.76]
[1720926249394,11.76,144.42,144.38,11.76]
[1720926249599,1.53890017,144.44,144.38,11.76]
[1720926249901,11.76,144.43,144.38,11.795]
[1720926250098,1.53890017,144.42,144.38,11.795]
[1720926250515,11.76,144.43,144.38,11.795]
[1720926250803,1.53890017,144.42,144.38,11.795]
[1720926252195,13.29890017,144.42,144.38,0.035]
[1720926252501,1.53890017,144.41,144.38,0.035]
[1720926252702,1.53890017,144.41,144.38,1.42011413]
[1720926252876,30.0,144.39,144.38,13.18011413]
[1720926254584,1.53890017,144.44,144.38,11.795]
[1720926254799,13.29890017,144.44,144.39,11.76]
[1720926254986,1.53890017,144.43,144.39,11.76]
[1720926255602,13.29890017,144.43,144.38,0.035]
[1720926255793,13.29890017,144.43,144.38,11.795]
[1720926256608,13.29890017,144.43,144.39,1.38497909]
[1720926257111,13.29890017,144.43,144.39,13.14497909]
[1720926257295,13.29890017,144.43,144.39,11.76]
[1720926258800,30.0,144.4,144.39,11.76]
[1720926259108,30.0,144.4,144.38,11.795]
[1720926260085,30.0,144.4,144.39,11.76]
[1720926263988,1.53890017,144.43,144.39,11.76]
[1720926264883,1.53890017,144.43,144.38,0.035]
[1720926264884,11.76,144.41,144.38,0.035]
[1720926265091,30.0,144.4,144.38,0.035]